[Event "*** Titled Tuesday Blitz"]
[Site "Chess.com"]
[Date "2020.05.12"]
[Round "2"]
[White "Majesth"]
[Black "mfwagnerpeixoto"]
[Result "1-0"]
[WhiteElo "2463"]
[BlackElo "2242"]
[TimeControl "180+1"]
[EndTime "10:18:49 PDT"]
[Termination "Majesth won on time"]

1. d4 {[%clk 0:03:00.9]} 1... Nf6 {[%clk 0:02:57.3]} 2. Nc3 {[%clk 0:03:00.8]}
2... c5 {[%clk 0:02:55.5]} 3. d5 {[%clk 0:03:00.4]} 3... d6 {[%clk 0:02:54.9]}
4. e4 {[%clk 0:02:59.9]} 4... g6 {[%clk 0:02:54.8]} 5. f4 {[%clk 0:03:00.4]}
5... Nfd7 {[%clk 0:02:40.7]} 6. Nf3 {[%clk 0:02:57.5]} 6... Bg7 {[%clk
0:02:40.2]} 7. a4 {[%clk 0:02:56.9]} 7... O-O {[%clk 0:02:38.8]} 8. Bc4 {[%clk
0:02:53.7]} 8... Nb6 {[%clk 0:02:35.1]} 9. Be2 {[%clk 0:02:51.8]} 9... Bg4
{[%clk 0:02:24.7]} 10. a5 {[%clk 0:02:48.2]} 10... Bxf3 {[%clk 0:02:17.8]} 11.
Bxf3 {[%clk 0:02:08.7]} 11... Nc4 {[%clk 0:02:10.5]} 12. Qe2 {[%clk 0:02:04.7]}
12... Nxa5 {[%clk 0:02:05.5]} 13. e5 {[%clk 0:02:05.1]} 13... b6 {[%clk
0:01:41.3]} 14. O-O {[%clk 0:02:00.2]} 14... Nd7 {[%clk 0:01:36.3]} 15. e6
{[%clk 0:02:00.5]} 15... Nf6 {[%clk 0:01:36.1]} 16. g4 {[%clk 0:01:41.9]} 16...
fxe6 {[%clk 0:01:12.8]} 17. dxe6 {[%clk 0:01:34.1]} 17... d5 {[%clk 0:01:03]}
18. g5 {[%clk 0:01:31.3]} 18... Ne4 {[%clk 0:01:02.8]} 19. Nxe4 {[%clk
0:01:25.2]} 19... dxe4 {[%clk 0:01:02.3]} 20. Bxe4 {[%clk 0:01:26.1]} 20... Rc8
{[%clk 0:00:55]} 21. Ra3 {[%clk 0:01:20.9]} 21... Nc6 {[%clk 0:00:45.4]} 22. c3
{[%clk 0:01:02.2]} 22... Qc7 {[%clk 0:00:32.9]} 23. f5 {[%clk 0:00:55.3]} 23...
gxf5 {[%clk 0:00:29]} 24. Bxf5 {[%clk 0:00:56.2]} 24... Qe5 {[%clk 0:00:24.8]}
25. Qc2 {[%clk 0:00:46.5]} 25... Kh8 {[%clk 0:00:21.1]} 26. Ra4 {[%clk
0:00:42.1]} 26... h6 {[%clk 0:00:13]} 27. gxh6 {[%clk 0:00:38.7]} 27... Bf6
{[%clk 0:00:12.7]} 28. Re4 {[%clk 0:00:36.7]} 28... Rg8+ {[%clk 0:00:12.5]} 29.
Kh1 {[%clk 0:00:35.6]} 29... Qd5 {[%clk 0:00:12]} 30. c4 {[%clk 0:00:26.8]}
30... Qd6 {[%clk 0:00:10.8]} 31. Bf4 {[%clk 0:00:26.2]} 31... Qd8 {[%clk
0:00:09.6]} 32. Qf2 {[%clk 0:00:20.2]} 32... Nd4 {[%clk 0:00:09.4]} 33. Be5
{[%clk 0:00:17.9]} 33... Qf8 {[%clk 0:00:07]} 34. Bh3 {[%clk 0:00:13.5]} 34...
Bxe5 {[%clk 0:00:05]} 35. Rxe5 {[%clk 0:00:14.4]} 35... Qxf2 {[%clk 0:00:03.5]}
36. Rxf2 {[%clk 0:00:15.3]} 36... Rcf8 {[%clk 0:00:02.5]} 37. Rxf8 {[%clk
0:00:09.2]} 37... Rxf8 {[%clk 0:00:03.4]} 38. Kg2 {[%clk 0:00:09.5]} 38... Rf6
{[%clk 0:00:03.3]} 39. Rd5 {[%clk 0:00:06.6]} 39... Rxh6 {[%clk 0:00:01.8]} 40.
Rd8+ {[%clk 0:00:03.5]} 40... Kg7 {[%clk 0:00:02.2]} 41. Rd7 {[%clk 0:00:04.4]}
41... Kf6 {[%clk 0:00:01.9]} 42. Rxa7 {[%clk 0:00:04]} 42... Ne2 {[%clk
0:00:02.1]} 43. Bg4 {[%clk 0:00:03.2]} 1-0

[Event "*** Titled Tuesday Blitz"]
[Site "Chess.com"]
[Date "2020.05.12"]
[Round "2"]
[White "manuellarrea"]
[Black "SARGISMV"]
[Result "0-1"]
[WhiteElo "2190"]
[BlackElo "2431"]
[TimeControl "180+1"]
[EndTime "10:18:49 PDT"]
[Termination "SARGISMV won on time"]

1. e4 {[%clk 0:03:00.9]} 1... e6 {[%clk 0:02:59.3]} 2. d4 {[%clk 0:02:59.2]}
2... d5 {[%clk 0:03:00.2]} 3. Nc3 {[%clk 0:02:58.7]} 3... Bb4 {[%clk 0:03:00.7]}
4. e5 {[%clk 0:02:58.3]} 4... c5 {[%clk 0:03:01.3]} 5. a3 {[%clk 0:02:58.3]}
5... Bxc3+ {[%clk 0:03:01.8]} 6. bxc3 {[%clk 0:02:58.5]} 6... Ne7 {[%clk
0:03:02.7]} 7. Qg4 {[%clk 0:02:58.1]} 7... O-O {[%clk 0:03:03.2]} 8. Nf3 {[%clk
0:02:51.1]} 8... Nbc6 {[%clk 0:03:00.8]} 9. Bd3 {[%clk 0:02:50.7]} 9... f5
{[%clk 0:03:00]} 10. exf6 {[%clk 0:02:49]} 10... Rxf6 {[%clk 0:02:59.7]} 11. Qh4
{[%clk 0:02:16.8]} 11... h6 {[%clk 0:02:58.1]} 12. dxc5 {[%clk 0:02:04]} 12...
e5 {[%clk 0:02:51.9]} 13. Be2 {[%clk 0:01:56.8]} 13... Qa5 {[%clk 0:02:28.3]}
14. O-O {[%clk 0:01:43.7]} 14... Qxc3 {[%clk 0:02:13.7]} 15. Bd2 {[%clk
0:01:43.4]} 15... Qxc2 {[%clk 0:02:03.5]} 16. Rfc1 {[%clk 0:01:40.3]} 16... Qg6
{[%clk 0:01:56.7]} 17. Rab1 {[%clk 0:01:35.2]} 17... e4 {[%clk 0:01:53.4]} 18.
Ne1 {[%clk 0:01:29.7]} 18... Nd4 {[%clk 0:01:47.5]} 19. Bd1 {[%clk 0:01:16.2]}
19... Nef5 {[%clk 0:01:28.5]} 20. Qh5 {[%clk 0:01:06.1]} 20... Ne6 {[%clk
0:00:37.1]} 21. Qxg6 {[%clk 0:00:57.7]} 21... Rxg6 {[%clk 0:00:38]} 22. c6
{[%clk 0:00:46]} 22... bxc6 {[%clk 0:00:34.4]} 23. Rxc6 {[%clk 0:00:44.1]} 23...
Bd7 {[%clk 0:00:24.8]} 24. Ra6 {[%clk 0:00:38.6]} 24... d4 {[%clk 0:00:23.4]}
25. Rb7 {[%clk 0:00:31.8]} 25... Be8 {[%clk 0:00:16.9]} 26. Raxa7 {[%clk
0:00:30.3]} 26... Rxa7 {[%clk 0:00:16.9]} 27. Rxa7 {[%clk 0:00:29.4]} 27... Nh4
{[%clk 0:00:16.7]} 28. Bh5 {[%clk 0:00:21.1]} 28... e3 {[%clk 0:00:09]} 29. fxe3
{[%clk 0:00:18.2]} 29... Rg5 {[%clk 0:00:07.5]} 30. Bxe8 {[%clk 0:00:16.6]}
30... d3 {[%clk 0:00:07.9]} 31. g3 {[%clk 0:00:15]} 31... Nf5 {[%clk 0:00:06.3]}
32. Bd7 {[%clk 0:00:14]} 32... Nc5 {[%clk 0:00:04.3]} 33. Bxf5 {[%clk
0:00:10.3]} 33... Rxf5 {[%clk 0:00:05.2]} 34. Ng2 {[%clk 0:00:09.2]} 34... Ne4
{[%clk 0:00:05.4]} 35. Bb4 {[%clk 0:00:08.3]} 35... Rd5 {[%clk 0:00:04.7]} 36.
Ra8+ {[%clk 0:00:06.5]} 36... Kh7 {[%clk 0:00:04.6]} 37. Re8 {[%clk 0:00:06]}
37... d2 {[%clk 0:00:04.5]} 38. Bxd2 {[%clk 0:00:05.9]} 38... Nxd2 {[%clk
0:00:05.4]} 39. Nf4 {[%clk 0:00:05.8]} 39... Ra5 {[%clk 0:00:04.4]} 40. Rd8
{[%clk 0:00:04]} 40... Ne4 {[%clk 0:00:03.8]} 41. Rd7 {[%clk 0:00:02.9]} 41...
Rxa3 {[%clk 0:00:02.9]} 42. Ne6 {[%clk 0:00:02.2]} 42... Kg6 {[%clk 0:00:03.5]}
43. Rxg7+ {[%clk 0:00:01.8]} 43... Kf6 {[%clk 0:00:04.4]} 44. Rg4 {[%clk
0:00:01.1]} 44... Ra1+ {[%clk 0:00:05.3]} 0-1

[Event "*** Titled Tuesday Blitz"]
[Site "Chess.com"]
[Date "2020.05.12"]
[Round "2"]
[White "blitzking1729"]
[Black "Shield12"]
[Result "0-1"]
[WhiteElo "2524"]
[BlackElo "2801"]
[TimeControl "180+1"]
[EndTime "10:18:50 PDT"]
[Termination "Shield12 won by resignation"]

1. d4 {[%clk 0:03:00.9]} 1... Nf6 {[%clk 0:02:59.7]} 2. c4 {[%clk 0:02:59]} 2...
e6 {[%clk 0:02:59.7]} 3. Nf3 {[%clk 0:02:58.9]} 3... b6 {[%clk 0:02:59.9]} 4. g3
{[%clk 0:02:58.6]} 4... Bb7 {[%clk 0:03:00.2]} 5. Bg2 {[%clk 0:02:57.8]} 5...
Be7 {[%clk 0:03:01.1]} 6. O-O {[%clk 0:02:56.8]} 6... O-O {[%clk 0:03:01.1]} 7.
Nc3 {[%clk 0:02:56.9]} 7... Ne4 {[%clk 0:03:00.8]} 8. Bd2 {[%clk 0:02:57.2]}
8... Bf6 {[%clk 0:03:01]} 9. Be1 {[%clk 0:02:56.9]} 9... Nxc3 {[%clk 0:02:51.4]}
10. Bxc3 {[%clk 0:02:56.5]} 10... d6 {[%clk 0:02:52.3]} 11. Rc1 {[%clk 0:02:56]}
11... Nd7 {[%clk 0:02:52]} 12. e3 {[%clk 0:02:52.1]} 12... g6 {[%clk 0:02:48.4]}
13. Re1 {[%clk 0:02:49.4]} 13... Bg7 {[%clk 0:02:47.5]} 14. b4 {[%clk
0:02:49.3]} 14... c5 {[%clk 0:02:38.8]} 15. dxc5 {[%clk 0:02:49.1]} 15... dxc5
{[%clk 0:02:38.7]} 16. Bxg7 {[%clk 0:02:36.3]} 16... Kxg7 {[%clk 0:02:39.6]} 17.
Qb3 {[%clk 0:02:34.5]} 17... cxb4 {[%clk 0:02:38.2]} 18. Qxb4 {[%clk 0:02:32.3]}
18... Nc5 {[%clk 0:02:36.5]} 19. Rcd1 {[%clk 0:02:29.6]} 19... Qf6 {[%clk
0:02:28.1]} 20. Nd4 {[%clk 0:02:26.8]} 20... Bxg2 {[%clk 0:02:27.6]} 21. Kxg2
{[%clk 0:02:27.7]} 21... Rfd8 {[%clk 0:02:26]} 22. Qb5 {[%clk 0:02:08.9]} 22...
Ne4 {[%clk 0:02:22.5]} 23. Qb2 {[%clk 0:02:04.4]} 23... Rac8 {[%clk 0:02:17.1]}
24. Rc1 {[%clk 0:01:51]} 24... e5 {[%clk 0:02:10.6]} 25. Nf3 {[%clk 0:01:49.9]}
25... Nc5 {[%clk 0:01:53.5]} 26. Nxe5 {[%clk 0:01:48.2]} 26... Na4 {[%clk
0:01:33.9]} 27. Qa1 {[%clk 0:01:42.2]} 27... Rd2 {[%clk 0:01:23.2]} 28. Nf3
{[%clk 0:01:40]} 28... Qxa1 {[%clk 0:01:22.6]} 29. Rxa1 {[%clk 0:01:39.6]} 29...
Rc2 {[%clk 0:01:23]} 30. Red1 {[%clk 0:01:33.1]} 30... R8xc4 {[%clk 0:01:22.7]}
31. Rd7 {[%clk 0:01:32.5]} 31... Rc7 {[%clk 0:01:17.8]} 32. Rad1 {[%clk
0:01:31.8]} 32... a5 {[%clk 0:01:10.5]} 33. Ne5 {[%clk 0:01:26.4]} 33... Rxd7
{[%clk 0:01:08.1]} 34. Rxd7 {[%clk 0:01:25.7]} 34... Kf6 {[%clk 0:01:08.4]} 35.
Nxf7 {[%clk 0:01:20.6]} 35... Nc5 {[%clk 0:01:08]} 36. Rc7 {[%clk 0:01:14]}
36... Rxa2 {[%clk 0:01:07.7]} 37. Nd6 {[%clk 0:01:10.9]} 37... Nd3 {[%clk
0:01:01.2]} 38. Ne4+ {[%clk 0:01:07.6]} 38... Ke6 {[%clk 0:01:01.1]} 39. Kf3
{[%clk 0:01:04.1]} 39... b5 {[%clk 0:00:59.1]} 40. Rc6+ {[%clk 0:00:58.2]} 40...
Ke7 {[%clk 0:00:45.6]} 41. Rc7+ {[%clk 0:00:56.6]} 41... Ke6 {[%clk 0:00:45.5]}
42. Rc6+ {[%clk 0:00:56.8]} 42... Ke5 {[%clk 0:00:44.9]} 43. Nc3 {[%clk
0:00:26.2]} 43... Rxf2+ {[%clk 0:00:42.5]} 44. Kg4 {[%clk 0:00:26.5]} 44... b4
{[%clk 0:00:34.3]} 45. Nb5 {[%clk 0:00:24.9]} 45... b3 {[%clk 0:00:32.8]} 46.
Nc3 {[%clk 0:00:24.1]} 46... b2 {[%clk 0:00:30.3]} 47. Rb6 {[%clk 0:00:20.7]}
47... Rc2 {[%clk 0:00:27.5]} 48. Rb5+ {[%clk 0:00:20.6]} 48... Ke6 {[%clk
0:00:27]} 49. Nb1 {[%clk 0:00:20.1]} 49... a4 {[%clk 0:00:23.9]} 50. Ra5 {[%clk
0:00:20]} 50... Rc1 {[%clk 0:00:23.3]} 51. Na3 {[%clk 0:00:19.7]} 51... Ne5+
{[%clk 0:00:20]} 52. Kf4 {[%clk 0:00:18.6]} 52... Nc4 {[%clk 0:00:19.8]} 53.
Ra6+ {[%clk 0:00:18.6]} 53... Kd7 {[%clk 0:00:19.7]} 0-1

[Event "*** Titled Tuesday Blitz"]
[Site "Chess.com"]
[Date "2020.05.12"]
[Round "2"]
[White "Onischuk_V"]
[Black "LawrenceTrent"]
[Result "1-0"]
[WhiteElo "2805"]
[BlackElo "2520"]
[TimeControl "180+1"]
[EndTime "10:18:50 PDT"]
[Termination "Onischuk_V won by resignation"]

1. e4 {[%clk 0:03:00.1]} 1... c5 {[%clk 0:02:59.8]} 2. Nf3 {[%clk 0:02:59.6]}
2... Nc6 {[%clk 0:03:00.2]} 3. Bb5 {[%clk 0:02:59.1]} 3... g6 {[%clk 0:02:51.7]}
4. Bxc6 {[%clk 0:02:58.4]} 4... bxc6 {[%clk 0:02:50.6]} 5. O-O {[%clk
0:02:57.4]} 5... Bg7 {[%clk 0:02:49.9]} 6. Re1 {[%clk 0:02:57.6]} 6... e5 {[%clk
0:02:48.1]} 7. c3 {[%clk 0:02:56.6]} 7... Ne7 {[%clk 0:02:47.1]} 8. d4 {[%clk
0:02:56.4]} 8... cxd4 {[%clk 0:02:46.9]} 9. cxd4 {[%clk 0:02:56.4]} 9... exd4
{[%clk 0:02:46.5]} 10. Nxd4 {[%clk 0:02:56.6]} 10... O-O {[%clk 0:02:46.7]} 11.
Nc3 {[%clk 0:02:56.7]} 11... Rb8 {[%clk 0:02:39.3]} 12. Nb3 {[%clk 0:02:52.4]}
12... d5 {[%clk 0:02:29.3]} 13. Bg5 {[%clk 0:02:44.9]} 13... Be6 {[%clk
0:02:21]} 14. exd5 {[%clk 0:02:11.5]} 14... cxd5 {[%clk 0:02:20.2]} 15. Qd2
{[%clk 0:02:11.5]} 15... Re8 {[%clk 0:01:51.6]} 16. Rad1 {[%clk 0:02:04.5]}
16... Qc7 {[%clk 0:01:28.8]} 17. Nd4 {[%clk 0:01:58.6]} 17... Nc6 {[%clk
0:01:04.7]} 18. Nxe6 {[%clk 0:01:45.1]} 18... fxe6 {[%clk 0:01:04.7]} 19. b3
{[%clk 0:01:45.6]} 19... Qa5 {[%clk 0:01:00.9]} 20. Na4 {[%clk 0:01:40.9]} 20...
Qxd2 {[%clk 0:00:59.8]} 21. Bxd2 {[%clk 0:01:40.3]} 21... Rbc8 {[%clk
0:00:58.1]} 22. Rc1 {[%clk 0:01:38.1]} 22... Ne5 {[%clk 0:00:50.1]} 23. Rxc8
{[%clk 0:01:28.8]} 23... Rxc8 {[%clk 0:00:50.1]} 24. Rc1 {[%clk 0:01:29.5]}
24... Rxc1+ {[%clk 0:00:47.1]} 25. Bxc1 {[%clk 0:01:29.4]} 25... Nd3 {[%clk
0:00:48]} 26. Be3 {[%clk 0:01:25.3]} 26... d4 {[%clk 0:00:40.5]} 27. Bd2 {[%clk
0:01:25.1]} 27... Bf8 {[%clk 0:00:31]} 28. Kf1 {[%clk 0:01:22.1]} 28... Ne5
{[%clk 0:00:27.9]} 29. Ke2 {[%clk 0:01:15.2]} 29... d3+ {[%clk 0:00:26.1]} 30.
Ke3 {[%clk 0:01:13.9]} 30... Ng4+ {[%clk 0:00:26.4]} 31. Kxd3 {[%clk 0:01:14]}
31... Nxf2+ {[%clk 0:00:26.9]} 32. Ke2 {[%clk 0:01:10.8]} 32... Ne4 {[%clk
0:00:27.1]} 33. Be3 {[%clk 0:01:10.9]} 33... a6 {[%clk 0:00:27.5]} 34. Kd3
{[%clk 0:01:10.4]} 34... Nf6 {[%clk 0:00:22.5]} 35. Bc5 {[%clk 0:01:08.4]} 35...
e5 {[%clk 0:00:19.7]} 36. Bxf8 {[%clk 0:01:07.7]} 36... Kxf8 {[%clk 0:00:20.6]}
37. Nc5 {[%clk 0:01:08.3]} 37... a5 {[%clk 0:00:21.2]} 38. Nb7 {[%clk
0:01:08.1]} 38... Nd5 {[%clk 0:00:21.8]} 39. Nxa5 {[%clk 0:01:06.2]} 39... Nb4+
{[%clk 0:00:22]} 40. Ke4 {[%clk 0:01:06.6]} 40... Nxa2 {[%clk 0:00:22.5]} 41.
Kxe5 {[%clk 0:01:07]} 41... Nc3 {[%clk 0:00:23.4]} 42. b4 {[%clk 0:01:05.2]}
42... Ke7 {[%clk 0:00:23.8]} 43. Nc6+ {[%clk 0:01:04.3]} 43... Kd7 {[%clk
0:00:24.1]} 44. Nd4 {[%clk 0:01:05]} 44... Nd1 {[%clk 0:00:21.8]} 45. b5 {[%clk
0:00:53]} 45... Ne3 {[%clk 0:00:19.3]} 46. g3 {[%clk 0:00:51.7]} 46... Nf1
{[%clk 0:00:18.8]} 47. Nf3 {[%clk 0:00:47]} 47... Ne3 {[%clk 0:00:14.6]} 48. Kf6
{[%clk 0:00:44.2]} 48... Nf5 {[%clk 0:00:08.9]} 49. g4 {[%clk 0:00:43.4]} 49...
Nd6 {[%clk 0:00:09.2]} 50. Kg7 {[%clk 0:00:42.3]} 50... Ke7 {[%clk 0:00:09]} 51.
b6 {[%clk 0:00:39.6]} 51... h5 {[%clk 0:00:08.2]} 52. g5 {[%clk 0:00:38.7]}
52... Kd7 {[%clk 0:00:06.4]} 53. Kxg6 {[%clk 0:00:38.8]} 1-0

[Event "*** Titled Tuesday Blitz"]
[Site "Chess.com"]
[Date "2020.05.12"]
[Round "2"]
[White "pouya21"]
[Black "manmanlai1"]
[Result "1-0"]
[WhiteElo "2770"]
[BlackElo "2335"]
[TimeControl "180+1"]
[EndTime "10:18:50 PDT"]
[Termination "pouya21 won on time"]

1. d4 {[%clk 0:03:00.9]} 1... d5 {[%clk 0:02:59.5]} 2. c4 {[%clk 0:02:57.2]}
2... e6 {[%clk 0:02:59.6]} 3. Nc3 {[%clk 0:02:51.7]} 3... Bb4 {[%clk 0:02:59.4]}
4. a3 {[%clk 0:02:44.9]} 4... Bxc3+ {[%clk 0:02:58.8]} 5. bxc3 {[%clk
0:02:45.8]} 5... c6 {[%clk 0:02:57.4]} 6. Nf3 {[%clk 0:02:38.7]} 6... b6 {[%clk
0:02:44.5]} 7. cxd5 {[%clk 0:02:36.6]} 7... cxd5 {[%clk 0:02:44.4]} 8. a4 {[%clk
0:02:37]} 8... Ne7 {[%clk 0:02:42.5]} 9. e3 {[%clk 0:02:36.4]} 9... O-O {[%clk
0:02:40.1]} 10. Bb5 {[%clk 0:02:31.9]} 10... Qc7 {[%clk 0:02:35]} 11. O-O {[%clk
0:02:28.5]} 11... a5 {[%clk 0:02:20.6]} 12. Ba3 {[%clk 0:02:20.9]} 12... Ba6
{[%clk 0:02:13.8]} 13. Qd3 {[%clk 0:02:15.4]} 13... Rc8 {[%clk 0:02:10.3]} 14.
Rfc1 {[%clk 0:02:06.9]} 14... Bxb5 {[%clk 0:02:02.4]} 15. axb5 {[%clk
0:02:06.9]} 15... Nf5 {[%clk 0:01:36.7]} 16. Ne5 {[%clk 0:01:55.9]} 16... f6
{[%clk 0:01:21.7]} 17. c4 {[%clk 0:01:33.2]} 17... fxe5 {[%clk 0:00:29.4]} 18.
cxd5 {[%clk 0:01:30.5]} 18... Qd7 {[%clk 0:00:26.5]} 19. Rxc8+ {[%clk
0:01:02.9]} 19... Qxc8 {[%clk 0:00:27.4]} 20. Rc1 {[%clk 0:00:39.4]} 20... Qe8
{[%clk 0:00:20.5]} 21. dxe6 {[%clk 0:00:37.2]} 21... Qxe6 {[%clk 0:00:19.5]} 22.
Qe4 {[%clk 0:00:35.5]} 22... Ra7 {[%clk 0:00:17.5]} 23. d5 {[%clk 0:00:32.6]}
23... Qd7 {[%clk 0:00:15.7]} 24. Qxe5 {[%clk 0:00:30.5]} 24... Rb7 {[%clk
0:00:16.1]} 25. h3 {[%clk 0:00:28.2]} 25... Nh6 {[%clk 0:00:14.9]} 26. Rc6
{[%clk 0:00:25.8]} 26... Nf7 {[%clk 0:00:12.1]} 27. Qd4 {[%clk 0:00:20.2]} 27...
Qd8 {[%clk 0:00:08.6]} 28. Re6 {[%clk 0:00:18.6]} 28... Nd7 {[%clk 0:00:07.8]}
29. Qe4 {[%clk 0:00:18.7]} 29... Nf6 {[%clk 0:00:07.5]} 30. Qf5 {[%clk
0:00:18.8]} 30... Rd7 {[%clk 0:00:07.4]} 31. d6 {[%clk 0:00:18.7]} 31... Nxd6
{[%clk 0:00:06.7]} 32. Qe5 {[%clk 0:00:18.8]} 32... Nf7 {[%clk 0:00:06.3]} 33.
Qf5 {[%clk 0:00:18.8]} 33... h6 {[%clk 0:00:06.8]} 34. Rc6 {[%clk 0:00:17.2]}
34... Rd5 {[%clk 0:00:06.3]} 35. Qc8 {[%clk 0:00:16.5]} 35... Rd1+ {[%clk
0:00:05.6]} 36. Kh2 {[%clk 0:00:16.4]} 36... Nd5 {[%clk 0:00:03.6]} 37. Qxd8+
{[%clk 0:00:15.5]} 37... Nxd8 {[%clk 0:00:04.5]} 38. Rd6 {[%clk 0:00:16]} 38...
Nc3 {[%clk 0:00:03.8]} 39. Rxb6 {[%clk 0:00:15.2]} 39... Kf7 {[%clk 0:00:02.7]}
40. Rb8 {[%clk 0:00:15.3]} 40... Ne6 {[%clk 0:00:03.2]} 41. b6 {[%clk
0:00:15.7]} 41... Nb5 {[%clk 0:00:02.3]} 42. b7 {[%clk 0:00:14.8]} 42... Rb1
{[%clk 0:00:02.7]} 43. Rf8+ {[%clk 0:00:14.8]} 43... Nxf8 {[%clk 0:00:01.8]} 44.
b8=Q {[%clk 0:00:15.2]} 44... Ne6 {[%clk 0:00:02.7]} 45. Bd6 {[%clk 0:00:14.4]}
45... Nc3 {[%clk 0:00:01.6]} 46. Qa7+ {[%clk 0:00:14]} 46... Kg6 {[%clk
0:00:01.5]} 47. Qxa5 {[%clk 0:00:14.6]} 1-0

[Event "*** Titled Tuesday Blitz"]
[Site "Chess.com"]
[Date "2020.05.12"]
[Round "2"]
[White "VladDobrov"]
[Black "stolencandy13"]
[Result "1-0"]
[WhiteElo "2761"]
[BlackElo "2507"]
[TimeControl "180+1"]
[EndTime "10:18:51 PDT"]
[Termination "VladDobrov won by resignation"]

1. d4 {[%clk 0:02:58.5]} 1... Nf6 {[%clk 0:02:57.4]} 2. c4 {[%clk 0:02:58.8]}
2... c5 {[%clk 0:02:56.5]} 3. d5 {[%clk 0:02:58.8]} 3... e6 {[%clk 0:02:55.1]}
4. Nc3 {[%clk 0:02:58.8]} 4... exd5 {[%clk 0:02:54.4]} 5. cxd5 {[%clk
0:02:59.7]} 5... d6 {[%clk 0:02:55.2]} 6. Nf3 {[%clk 0:02:59.6]} 6... g6 {[%clk
0:02:52.5]} 7. Bf4 {[%clk 0:03:00.1]} 7... a6 {[%clk 0:02:48.2]} 8. e4 {[%clk
0:03:00.2]} 8... b5 {[%clk 0:02:43.2]} 9. Qe2 {[%clk 0:02:59.9]} 9... Be7 {[%clk
0:02:40.1]} 10. Qc2 {[%clk 0:03:00]} 10... O-O {[%clk 0:02:36.4]} 11. a4 {[%clk
0:03:00.6]} 11... b4 {[%clk 0:02:33.4]} 12. Nd1 {[%clk 0:03:01.1]} 12... Nh5
{[%clk 0:02:30.7]} 13. Bh6 {[%clk 0:02:52.9]} 13... Re8 {[%clk 0:02:30.8]} 14.
Bd3 {[%clk 0:02:52.6]} 14... Bf8 {[%clk 0:02:27.7]} 15. Bxf8 {[%clk 0:02:49.1]}
15... Rxf8 {[%clk 0:02:27.6]} 16. O-O {[%clk 0:02:49.8]} 16... Bg4 {[%clk
0:02:17.9]} 17. Nd2 {[%clk 0:02:49.4]} 17... Nf4 {[%clk 0:02:13]} 18. Ne3 {[%clk
0:02:48.7]} 18... Be2 {[%clk 0:02:08]} 19. Bxe2 {[%clk 0:02:45.9]} 19... Nxe2+
{[%clk 0:02:08.9]} 20. Kh1 {[%clk 0:02:46.8]} 20... Nd7 {[%clk 0:02:06.5]} 21.
Ndc4 {[%clk 0:02:43.6]} 21... Nd4 {[%clk 0:02:02.8]} 22. Qd3 {[%clk 0:02:43.6]}
22... Re8 {[%clk 0:01:50.8]} 23. Rae1 {[%clk 0:02:25]} 23... Qe7 {[%clk
0:01:36.5]} 24. f3 {[%clk 0:02:09]} 24... Ne5 {[%clk 0:01:34]} 25. Nxe5 {[%clk
0:02:08.7]} 25... Qxe5 {[%clk 0:01:34.9]} 26. Nc4 {[%clk 0:02:08.8]} 26... Qe7
{[%clk 0:01:31]} 27. f4 {[%clk 0:02:07.6]} 27... Rad8 {[%clk 0:01:27.1]} 28. Re3
{[%clk 0:01:53]} 28... Qd7 {[%clk 0:01:13.3]} 29. f5 {[%clk 0:01:49.9]} 29...
Qxa4 {[%clk 0:01:08.5]} 30. b3 {[%clk 0:01:44.4]} 30... Qd7 {[%clk 0:00:47.2]}
31. Rh3 {[%clk 0:01:32.1]} 31... Qe7 {[%clk 0:00:39.8]} 32. Qd2 {[%clk
0:01:09.7]} 32... h5 {[%clk 0:00:22.8]} 33. Qh6 {[%clk 0:00:57.8]} 33... Qf8
{[%clk 0:00:22.4]} 34. Qg5 {[%clk 0:00:56.9]} 34... Qe7 {[%clk 0:00:18.2]} 35.
Qh6 {[%clk 0:00:50.3]} 35... Qf8 {[%clk 0:00:18.2]} 36. Qf4 {[%clk 0:00:50.9]}
36... Qg7 {[%clk 0:00:14.6]} 37. f6 {[%clk 0:00:45.5]} 37... Qf8 {[%clk
0:00:13.4]} 38. g4 {[%clk 0:00:34.6]} 38... Ne2 {[%clk 0:00:11.3]} 39. Qf3
{[%clk 0:00:30.9]} 39... Nd4 {[%clk 0:00:10]} 40. Qg2 {[%clk 0:00:28.3]} 40...
Qh6 {[%clk 0:00:08.9]} 41. gxh5 {[%clk 0:00:28.6]} 41... g5 {[%clk 0:00:09.3]}
42. Rg3 {[%clk 0:00:28.6]} 42... Kh7 {[%clk 0:00:09.1]} 43. h4 {[%clk 0:00:24]}
43... Qxh5 {[%clk 0:00:04.7]} 44. Rxg5 {[%clk 0:00:17.5]} 44... Qxh4+ {[%clk
0:00:04.7]} 45. Qh2 {[%clk 0:00:16.5]} 45... Qxh2+ {[%clk 0:00:03.6]} 46. Kxh2
{[%clk 0:00:17.4]} 46... Rg8 {[%clk 0:00:04]} 47. Rh5+ {[%clk 0:00:13.2]} 47...
Kg6 {[%clk 0:00:04]} 48. Rh3 {[%clk 0:00:14.1]} 48... Ne2 {[%clk 0:00:02.2]} 49.
Rf2 {[%clk 0:00:12.8]} 49... Rh8 {[%clk 0:00:02.7]} 50. Rxe2 {[%clk 0:00:11.2]}
50... Rxh3+ {[%clk 0:00:02.5]} 51. Kxh3 {[%clk 0:00:12.1]} 51... Kxf6 {[%clk
0:00:03]} 52. Nxd6 {[%clk 0:00:12.6]} 1-0